bitfinex-derivatives/quotes_BNBF0:USTF0_20250907
["timestamp","ask_amount","ask_price","bid_price","bid_amount"]
[1757247227589,3.609638,871.08,869.56,0.19957905]
[1757247228694,3.609638,871.06,869.56,0.19957905]
[1757247229689,3.609638,871.04,869.56,0.19957905]
[1757247230188,3.609638,871.04,869.57,0.74002892]
[1757247230391,3.609638,871.04,869.58,0.74002892]
[1757247230595,3.609638,871.04,869.56,0.19957905]
[1757247230789,3.609638,871.19,869.57,0.74002892]
[1757247230990,3.609638,871.19,869.58,0.74002892]
[1757247231190,0.5201478,871.69,869.59,0.74002892]
[1757247231393,0.5201478,871.69,869.6,0.74002892]
[1757247231594,0.5201478,871.69,869.61,0.74002892]
[1757247231893,0.5201478,871.69,869.62,0.74002892]
[1757247232094,0.5201478,871.69,869.63,0.74002892]
[1757247232390,0.5201478,871.69,869.64,0.74002892]
[1757247232690,0.5201478,871.69,869.65,0.74002892]
[1757247232894,0.5201478,871.69,869.66,0.74002892]
[1757247233093,0.5201478,871.69,869.67,0.74002892]
[1757247233394,0.5201478,871.69,869.68,0.74002892]
[1757247233594,0.5201478,871.69,869.69,0.74002892]
[1757247233890,0.5201478,871.69,869.7,0.74002892]
[1757247234090,0.5201478,871.69,869.71,0.74002892]
[1757247234292,0.5201478,871.69,869.56,0.19957905]
[1757247234293,0.5201478,871.69,869.72,0.74002892]
[1757247234493,0.5201478,871.69,869.73,0.74002892]
[1757247234690,0.5201478,871.69,869.74,0.74002892]
[1757247234893,0.5201478,871.69,869.75,0.74002892]
[1757247235194,0.5201478,871.69,869.56,0.19957905]
[1757247235391,0.5201478,871.69,869.57,0.73825178]
[1757247235591,0.5201478,871.69,869.58,0.73825178]
[1757247235793,2.5722888,871.66,869.59,0.73825178]
[1757247235994,2.5722888,871.66,869.6,0.73825178]
[1757247236194,2.5722888,871.66,869.61,0.73825178]
[1757247236391,2.5722888,871.66,869.62,0.73825178]
[1757247236596,1.5434072,870.69,869.63,0.73825178]
[1757247236796,1.5434072,870.69,869.64,0.73825178]
[1757247237097,1.5434072,870.69,869.65,0.73825178]
[1757247237297,1.5434072,870.69,869.66,0.73825178]
[1757247237497,1.5434072,870.69,869.67,0.73825178]
[1757247237696,1.5434072,870.69,869.68,0.73825178]
[1757247237896,1.5434072,870.69,869.69,0.73825178]
[1757247238096,1.5434072,870.69,869.7,0.73825178]
[1757247238295,1.5434072,870.69,869.71,0.73825178]
[1757247238493,1.5434072,870.69,869.72,0.73825178]
[1757247238695,1.5434072,870.69,869.73,0.73825178]
[1757247238899,1.5434072,870.69,869.74,0.73825178]
[1757247239100,1.5434072,870.69,869.56,0.19957905]
[1757247239301,1.5434072,870.69,869.57,0.73357184]
[1757247239599,1.5434072,870.69,869.58,0.73357184]
[1757247239795,1.5434072,870.69,869.59,0.73357184]
[1757247239999,1.5434072,870.69,869.6,0.73357184]
[1757247240195,1.5434072,870.49,869.56,0.19957905]
[1757247240597,1.5434072,870.46,869.56,0.19957905]
[1757247240796,0.98527179,870.47,869.56,0.19957905]
[1757247241297,2.5722888,871.43,869.56,0.19957905]
[1757247241497,2.5722888,871.41,869.56,0.19957905]
[1757247241998,2.5722888,871.42,869.56,0.19957905]
[1757247243705,2.5722888,870.89,869.56,0.19957905]
[1757247244701,2.5722888,870.9,869.56,0.19957905]
[1757247245204,2.5722888,870.79,869.56,0.19957905]
[1757247245706,2.5722888,870.81,869.56,0.19957905]
[1757247246400,2.5722888,870.82,869.56,0.19957905]
[1757247247201,2.5722888,870.84,869.56,0.19957905]
[1757247248805,2.5722888,870.82,869.56,0.19957905]
[1757247250305,2.5722888,870.87,869.56,0.19957905]
[1757247251006,2.5722888,870.85,869.56,0.19957905]
[1757247251501,2.5722888,870.84,869.56,0.19957905]
[1757247252106,2.5722888,870.82,869.56,0.19957905]
[1757247252606,2.5722888,870.81,869.56,0.19957905]
[1757247253009,2.5722888,870.8,869.56,0.19957905]
[1757247253202,1.67259009,870.8,869.56,0.19957905]
[1757247253507,3.609638,871.1,869.56,0.19957905]
[1757247254003,3.609638,871.11,869.56,0.19957905]
[1757247255205,5.1472382,871.57,869.56,0.19957905]
[1757247255206,3.609638,871.08,869.56,0.19957905]
[1757247256205,3.609638,871.04,869.56,0.19957905]
[1757247259610,3.609638,871.04,869.25,0.77007361]
[1757247259811,3.609638,871.04,869.7,0.19965348]
[1757247260311,3.609638,871.07,869.7,0.19965348]
[1757247260910,1.543072,870.21,869.7,0.19965348]
[1757247261110,0.99794372,870.21,869.7,0.19965348]
[1757247261612,3.609638,871.09,869.7,0.19965348]
[1757247262110,2.5718127,870.82,869.7,0.19965348]
[1757247263112,1.7130187,870.82,869.7,0.19965348]
[1757247264410,3.609638,871.13,869.7,0.19965348]
[1757247265410,3.609638,871.31,869.7,0.19965348]
[1757247266714,3.609638,871.42,869.7,0.19965348]
[1757247268616,3.609638,871.45,869.7,0.19965348]
[1757247269614,3.609638,871.44,869.7,0.19965348]
[1757247270715,3.609638,871.46,869.7,0.19965348]
[1757247271820,3.609638,871.43,869.7,0.19965348]
[1757247272114,2.5727214,870.98,869.7,0.19965348]
[1757247274914,2.5727214,870.97,869.7,0.19965348]
[1757247276319,2.5727214,870.96,869.7,0.19965348]
[1757247276820,2.5727214,870.86,869.7,0.19965348]
[1757247277423,2.5727214,870.85,869.7,0.19965348]
[1757247277916,2.5727214,870.79,869.7,0.19965348]
[1757247278422,2.5727214,870.77,869.7,0.19965348]
[1757247280520,1.71608464,870.84,869.7,0.19965348]
[1757247281022,3.609638,871.07,869.7,0.19965348]
[1757247281225,3.609638,871.11,869.7,0.19965348]
[1757247281521,1.5443937,870.26,869.7,0.19965348]
[1757247281821,3.609638,871.11,869.7,0.19965348]
[1757247282224,3.609638,871.26,869.7,0.19965348]
[1757247283222,3.609638,871.24,869.7,0.19965348]
[1757247284424,3.609638,871.38,869.7,0.19965348]
[1757247288431,3.609638,871.39,869.7,0.19965348]
[1757247289132,3.609638,871.39,869.71,0.74906265]
[1757247289331,3.609638,871.39,869.72,0.74906265]
[1757247289532,2.5757257,871.54,869.73,0.74906265]
[1757247289729,2.5757257,871.54,869.7,0.19965348]
[1757247289933,2.5757257,871.54,869.71,0.74919024]
[1757247290227,2.5757257,871.54,869.7,0.19965348]
[1757247290629,2.5757257,871.36,869.7,0.19965348]
[1757247291030,2.5757257,871.32,869.7,0.19965348]
[1757247292037,1.0304591,870.07,869.7,0.19965348]
[1757247292234,1.0304591,870.06,869.7,0.19965348]
[1757247293831,1.0304591,870.05,869.7,0.19965348]
[1757247294531,1.0304591,870.04,869.7,0.19965348]
[1757247294731,1.0304591,870.05,869.7,0.19965348]
[1757247295135,1.0304591,870.04,869.7,0.19965348]
[1757247298836,0.71686803,870.04,869.7,0.19965348]
[1757247299034,0.71686803,869.86,869.7,0.19965348]
[1757247299233,2.5757257,871.22,869.7,0.19965348]
[1757247299438,2.5757257,870.71,869.7,0.19965348]
[1757247300344,2.5757257,870.8,869.7,0.19965348]
[1757247301542,2.5757257,870.7,869.7,0.19965348]
[1757247301747,1.5460798,870.07,869.7,0.19965348]
[1757247302147,1.5460798,870.07,869.23,0.77007361]
[1757247302446,1.5460798,870.07,869.73,0.19972108]
[1757247302642,1.5460798,870.07,869.23,0.77007361]
[1757247302845,1.5460798,870.07,869.76,0.19972051]
[1757247303350,1.5460798,870.07,869.23,0.77007361]
[1757247303848,1.5460798,870.1,869.22,0.77007361]
[1757247304347,1.5460798,870.1,869.43,0.19971936]
[1757247304549,1.5460798,870.11,869.43,0.19971936]
[1757247305047,1.5460798,870.12,869.43,0.19971936]
[1757247306947,1.05864054,870.12,869.43,0.19971936]
[1757247307351,2.5757257,870.82,869.43,0.19971936]
[1757247307647,2.5757257,870.83,869.43,0.19971936]
[1757247309649,2.5757257,870.63,869.43,0.19971936]
[1757247310149,1.68456518,870.63,869.43,0.19971936]
[1757247310353,1.68456518,870.64,869.43,0.19971936]
[1757247310551,1.68456518,870.64,869.44,0.72984888]
[1757247310754,3.609638,870.94,869.45,0.72984888]
[1757247311054,3.609638,870.94,869.46,0.72984888]
[1757247311254,3.609638,870.96,869.47,0.72984888]
[1757247311452,3.609638,870.96,869.48,0.72984888]
[1757247311656,3.609638,870.96,869.43,0.19971936]
[1757247312355,5.1472382,871.4,869.43,0.19971936]
[1757247312356,3.609638,870.92,869.43,0.19971936]
[1757247313451,3.609638,870.91,869.43,0.19971936]
[1757247314356,3.609638,870.85,869.43,0.19971936]
[1757247315553,3.609638,871.0,869.43,0.19971936]
[1757247316456,3.609638,871.01,869.43,0.19971936]
[1757247317553,3.609638,871.09,869.43,0.19971936]
[1757247318560,3.609638,871.29,869.43,0.19971936]
[1757247319262,2.5764464,870.91,869.43,0.19971936]
[1757247320263,2.5764464,871.03,869.43,0.19971936]
[1757247320863,2.5764464,871.05,869.43,0.19971936]
[1757247321764,2.5764464,871.06,869.43,0.19971936]
[1757247322461,2.5764464,871.05,869.43,0.19971936]
[1757247322867,2.5764464,870.93,869.43,0.19971936]
[1757247323261,2.5764464,870.9,869.43,0.19971936]
[1757247323865,2.5764464,870.89,869.43,0.19971936]
[1757247324365,2.5764464,870.9,869.43,0.19971936]
[1757247325462,2.5764464,870.91,869.43,0.19971936]
[1757247326464,2.5764464,870.92,869.43,0.19971936]
[1757247326968,1.5449398,870.15,869.43,0.19971936]
[1757247327164,1.04075099,870.16,869.43,0.19971936]
[1757247327968,2.5764464,870.95,869.43,0.19971936]
[1757247328670,2.5764464,870.91,869.43,0.19971936]
[1757247328871,1.0296953,869.92,869.43,0.19971936]
[1757247329169,0.70494177,869.9,869.43,0.19971936]
[1757247330166,2.5764464,870.87,869.43,0.19971936]
[1757247330669,2.5764464,870.73,869.43,0.19971936]
[1757247331166,2.5764464,870.74,869.43,0.19971936]
[1757247333272,2.5764464,870.69,869.43,0.19971936]
[1757247334373,2.5764464,870.7,869.43,0.19971936]
[1757247335469,2.5764464,870.71,869.43,0.19971936]
[1757247335870,2.5764464,870.57,869.43,0.19971936]
[1757247336571,2.5764464,870.58,869.43,0.19971936]
[1757247337370,2.5764464,870.5,869.43,0.19971936]
[1757247339569,2.5764464,870.49,869.43,0.19971936]
[1757247340070,3.609638,870.81,869.43,0.19971936]
[1757247340572,2.5764464,870.82,869.43,0.19971936]
[1757247341673,2.5764464,870.81,869.43,0.19971936]
[1757247342274,2.5764464,870.82,869.43,0.19971936]
[1757247346276,2.5764464,870.83,869.43,0.19971936]
[1757247346771,2.5764464,870.82,869.43,0.19971936]
[1757247347173,1.5410728,869.98,869.43,0.19971936]
[1757247347377,1.5410728,869.97,869.43,0.19971936]
[1757247348178,1.5410728,869.98,869.43,0.19971936]
[1757247349678,1.5410728,869.79,869.43,0.19971936]
[1757247349977,3.609638,870.77,869.43,0.19971936]
[1757247349978,2.5764464,870.44,869.43,0.19971936]
[1757247350482,2.5764464,870.45,869.43,0.19971936]
[1757247351081,2.5764464,870.46,869.43,0.19971936]
[1757247352478,2.5764464,870.44,869.43,0.19971936]
[1757247353482,2.5764464,870.48,869.43,0.19971936]
[1757247353984,2.5764464,870.47,869.43,0.19971936]
[1757247355181,2.5764464,870.46,869.43,0.19971936]
[1757247356587,2.5764464,870.45,869.43,0.19971936]
[1757247357083,3.609638,870.78,869.43,0.19971936]
[1757247357984,2.5764464,870.83,869.43,0.19971936]
[1757247358687,2.5764464,870.84,869.43,0.19971936]
[1757247359188,1.0271422,869.78,869.43,0.19971936]
[1757247360383,2.5764464,870.84,869.43,0.19971936]
[1757247360688,2.5764464,870.76,869.43,0.19971936]
[1757247361488,2.5764464,871.53,869.43,0.19971936]
[1757247361685,1.1469258,871.52,869.43,0.19971936]
[1757247361890,1.1469258,871.51,869.43,0.19971936]
[1757247362089,1.1469258,871.5,869.43,0.19971936]
[1757247362290,1.1469258,871.49,869.43,0.19971936]
[1757247362487,1.1469258,871.48,869.43,0.19971936]
[1757247362686,1.1469258,871.47,869.43,0.19971936]
[1757247362885,1.1469258,871.46,869.43,0.19971936]
[1757247363090,1.1469258,871.45,869.43,0.19971936]
[1757247363294,1.1469258,871.44,869.43,0.19971936]
[1757247363494,1.1469258,871.43,869.43,0.19971936]
[1757247363792,1.1469258,871.42,869.43,0.19971936]
[1757247364091,1.1469258,871.41,869.43,0.19971936]
[1757247364290,1.1469258,871.4,869.43,0.19971936]
[1757247364491,1.1469258,871.39,869.43,0.19971936]
[1757247364792,1.1469258,871.38,869.43,0.19971936]
[1757247365092,1.1469258,871.37,869.43,0.19971936]
[1757247365292,1.1469258,871.36,869.43,0.19971936]
[1757247365493,1.1469258,871.35,869.43,0.19971936]
[1757247365693,1.1469258,871.34,869.43,0.19971936]
[1757247365895,1.1469258,871.33,869.43,0.19971936]
[1757247366096,1.1469258,871.32,869.43,0.19971936]
[1757247366392,1.1469258,871.31,869.43,0.19971936]
[1757247366594,1.1469258,871.3,869.43,0.19971936]
[1757247366792,1.1469258,871.29,869.43,0.19971936]
[1757247366995,1.1469258,871.28,869.43,0.19971936]
[1757247367294,1.1469258,871.27,869.43,0.19971936]
[1757247367492,1.1469258,871.26,869.43,0.19971936]
[1757247367690,1.1469258,871.25,869.43,0.19971936]
[1757247367896,2.5764464,871.57,869.43,0.19971936]
[1757247368096,1.1469562,871.56,869.43,0.19971936]
[1757247368292,1.1469562,871.55,869.43,0.19971936]
[1757247368497,1.1469562,871.54,869.43,0.19971936]
[1757247368796,1.1469562,871.53,869.43,0.19971936]
[1757247368991,1.1469562,871.52,869.43,0.19971936]
[1757247369293,1.1469562,871.51,869.43,0.19971936]
[1757247369497,1.1469562,871.5,869.43,0.19971936]
[1757247369794,1.5389777,870.2,869.43,0.19971936]
[1757247369997,1.5389777,870.16,869.43,0.19971936]
[1757247370296,1.5389777,869.82,869.43,0.19971936]
[1757247370493,2.5764464,871.41,869.43,0.19971936]
[1757247370494,1.5389777,869.65,869.43,0.19971936]
[1757247371095,1.5389777,869.66,869.43,0.19971936]
[1757247371294,1.5389777,869.67,869.43,0.19971936]
[1757247374098,1.5389777,869.66,869.43,0.19971936]
[1757247375498,1.5389777,869.66,868.4,0.77007361]
[1757247376104,1.5389777,869.65,868.4,0.77007361]
[1757247376399,1.5389777,869.66,868.4,0.77007361]
[1757247376603,1.5389777,869.68,868.39,0.77007361]
[1757247377803,1.5389777,869.69,868.39,0.77007361]
[1757247378200,1.5389777,869.68,868.4,0.77007361]
[1757247379206,1.5389777,869.67,868.4,0.77007361]
[1757247379509,1.5389777,869.67,868.71,0.19986216]
[1757247380106,1.5389777,869.65,868.71,0.19986216]
[1757247380406,1.5389777,869.71,868.71,0.19986216]
[1757247381106,1.5389777,869.66,868.71,0.19986216]
[1757247381706,1.5389777,869.67,868.71,0.19986216]
[1757247382004,1.08489803,869.67,868.71,0.19986216]
[1757247382309,2.5764464,870.28,868.71,0.19986216]
[1757247382706,2.5764464,870.29,868.71,0.19986216]
[1757247383206,2.5764464,870.3,868.71,0.19986216]
[1757247383710,2.5764464,870.32,868.71,0.19986216]
[1757247384708,2.5764464,870.33,868.71,0.19986216]
[1757247385410,2.5764464,870.41,868.71,0.19986216]
[1757247385908,2.5764464,870.39,868.71,0.19986216]
[1757247386709,2.5764464,870.35,868.71,0.19986216]
[1757247387409,2.5764464,870.34,868.71,0.19986216]
[1757247388414,2.5764464,870.35,868.71,0.19986216]
[1757247390316,1.02719,869.46,868.71,0.19986216]
[1757247390612,0.71600173,869.46,868.71,0.19986216]
[1757247390812,2.5764464,870.3,868.71,0.19986216]
[1757247391515,2.5764464,870.31,868.71,0.19986216]
[1757247392018,2.5764464,870.3,868.71,0.19986216]
[1757247392614,2.5764464,870.29,868.71,0.19986216]
[1757247393015,2.5764464,870.3,868.71,0.19986216]
[1757247393621,2.5764464,870.29,868.71,0.19986216]
[1757247394224,2.5764464,870.28,868.71,0.19986216]
[1757247395323,2.5764464,870.2,868.71,0.19986216]
[1757247395720,2.5764464,870.12,868.71,0.19986216]
[1757247396624,2.5764464,870.18,868.71,0.19986216]
[1757247397125,2.5764464,870.43,868.71,0.19986216]
[1757247397621,2.5764464,870.42,868.71,0.19986216]
[1757247398225,2.5764464,870.41,868.71,0.19986216]
[1757247400325,2.5764464,870.38,868.71,0.19986216]
[1757247400925,2.5764464,870.39,868.71,0.19986216]
[1757247402023,1.5412735,869.6,868.71,0.19986216]
[1757247402225,1.5412735,869.61,868.71,0.19986216]
[1757247402725,1.5412735,869.6,868.71,0.19986216]
[1757247403729,1.5412735,869.61,868.71,0.19986216]
[1757247405228,1.5412735,869.6,868.71,0.19986216]
[1757247406228,2.5764464,870.39,868.71,0.19986216]
[1757247406728,2.5764464,870.32,868.71,0.19986216]
[1757247407028,2.5764464,870.13,868.71,0.19986216]
[1757247407729,2.5764464,870.15,868.71,0.19986216]
[1757247408127,2.5764464,870.19,868.71,0.19986216]
[1757247408733,2.5764464,870.18,868.71,0.19986216]
[1757247410236,2.5764464,870.17,868.71,0.19986216]
[1757247410737,2.5764464,870.34,868.71,0.19986216]
[1757247412337,2.5764464,870.36,868.71,0.19986216]
[1757247413839,2.5764464,870.35,868.71,0.19986216]
[1757247414338,2.5764464,870.31,868.71,0.19986216]
[1757247414938,2.5764464,870.29,868.71,0.19986216]
[1757247415337,2.5764464,870.3,868.71,0.19986216]
[1757247416936,6.1860844,870.63,868.71,0.19986216]
[1757247417341,2.5764464,870.63,868.71,0.19986216]
[1757247417638,2.5764464,870.61,868.71,0.19986216]
[1757247417937,2.5764464,870.6,868.71,0.19986216]
[1757247418538,2.5764464,870.59,868.71,0.19986216]
[1757247419545,2.5764464,870.57,868.71,0.19986216]
[1757247420548,1.0296437,869.33,868.71,0.19986216]
[1757247420750,0.71724766,869.33,868.71,0.19986216]
[1757247421652,2.5764464,870.37,868.71,0.19986216]
[1757247422251,2.5764464,870.35,868.71,0.19986216]
[1757247424852,2.5764464,870.34,868.71,0.19986216]
[1757247425253,2.5764464,870.51,868.71,0.19986216]
[1757247425850,2.5764464,870.52,868.71,0.19986216]
[1757247426053,1.5446444,869.62,868.71,0.19986216]
[1757247426249,2.5764464,870.53,868.71,0.19986216]
[1757247426854,2.5764464,870.41,868.71,0.19986216]
[1757247427453,2.5764464,870.57,868.71,0.19986216]
[1757247429455,2.5764464,870.55,868.71,0.19986216]
[1757247430558,3.609638,871.01,868.71,0.19986216]
[1757247430757,1.1474629,871.0,868.71,0.19986216]
[1757247430960,1.1474629,870.99,868.71,0.19986216]
[1757247431259,1.1474629,870.98,868.71,0.19986216]
[1757247431555,1.1474629,870.97,868.71,0.19986216]
[1757247431758,1.1474629,870.96,868.71,0.19986216]
[1757247431958,1.1474629,870.95,868.71,0.19986216]
[1757247432156,1.1474629,870.94,868.71,0.19986216]
[1757247432458,1.1474629,870.93,868.71,0.19986216]
[1757247432657,1.1474629,870.92,868.71,0.19986216]
[1757247432855,1.1474629,870.91,868.71,0.19986216]
[1757247433054,1.1474629,870.9,868.71,0.19986216]
[1757247433255,1.1474629,870.89,868.71,0.19986216]
[1757247433454,1.1474629,870.88,868.71,0.19986216]
[1757247433658,1.1474629,870.87,868.71,0.19986216]
[1757247433853,1.1474629,870.86,868.71,0.19986216]
[1757247434055,1.1474629,870.85,868.71,0.19986216]
[1757247434255,0.19986216,871.13,868.71,0.19986216]
[1757247434459,1.1474425,871.12,868.71,0.19986216]
[1757247434755,1.1474425,871.11,868.71,0.19986216]
[1757247434955,1.1474425,871.1,868.71,0.19986216]
[1757247435158,1.1474425,871.09,868.71,0.19986216]
[1757247435358,1.1474425,871.08,868.71,0.19986216]
[1757247435555,1.1474425,871.07,868.71,0.19986216]
[1757247435758,1.1474425,871.06,868.71,0.19986216]
[1757247435958,1.1474425,871.05,868.71,0.19986216]
[1757247436155,1.1474425,871.04,868.71,0.19986216]
[1757247436359,1.1474425,871.03,868.71,0.19986216]
[1757247436557,2.5764464,870.21,868.71,0.19986216]
[1757247436960,2.5764464,870.23,868.71,0.19986216]
[1757247437455,2.5764464,870.19,868.71,0.19986216]
[1757247440164,2.5764464,870.21,868.71,0.19986216]
[1757247440563,2.5764464,870.16,868.71,0.19986216]
[1757247441260,2.5764464,870.25,868.71,0.19986216]
[1757247444265,2.5764464,870.24,868.71,0.19986216]
[1757247446166,1.5443009,869.45,868.71,0.19986216]
[1757247446462,0.19986216,871.13,868.71,0.19986216]
[1757247446463,0.48108694,869.43,868.71,0.19986216]
[1757247446867,2.5764464,870.21,868.71,0.19986216]
[1757247447365,2.5764464,870.24,868.71,0.19986216]
[1757247447866,2.5764464,870.23,868.71,0.19986216]
[1757247448366,2.5764464,870.21,868.71,0.19986216]
[1757247448867,2.5764464,870.22,868.71,0.19986216]
[1757247450062,2.5764464,870.2,868.71,0.19986216]
[1757247450568,2.5764464,870.01,868.71,0.19986216]
[1757247450868,1.0298655,869.21,868.71,0.19986216]
[1757247451065,0.69923826,869.21,868.71,0.19986216]
[1757247451567,0.19986216,871.13,868.71,0.19986216]
[1757247451568,2.5764464,870.02,868.71,0.19986216]
[1757247452270,2.5764464,870.01,868.71,0.19986216]
[1757247453572,2.5764464,869.95,868.71,0.19986216]
[1757247454174,2.5764464,869.98,868.71,0.19986216]
[1757247455168,3.609638,870.3,868.71,0.19986216]
[1757247455169,2.5764464,870.01,868.71,0.19986216]
[1757247456269,1.72206069,869.98,868.71,0.19986216]
[1757247456673,3.609638,870.32,868.71,0.19986216]
[1757247457772,3.609638,870.27,868.71,0.19986216]
[1757247458771,3.609638,870.25,868.71,0.19986216]
[1757247460072,3.609638,870.27,868.71,0.19986216]
[1757247460872,3.609638,870.44,868.71,0.19986216]
[1757247461874,3.609638,870.43,868.71,0.19986216]
[1757247464078,3.609638,870.36,868.71,0.19986216]
[1757247465077,3.609638,870.32,868.71,0.19986216]
[1757247465376,2.5753553,870.08,868.71,0.19986216]
[1757247465983,2.5753553,870.14,868.71,0.19986216]
[1757247466480,1.5452197,869.55,868.71,0.19986216]
[1757247466679,0.58105525,869.55,868.71,0.19986216]
[1757247466878,2.5753553,870.23,868.71,0.19986216]
[1757247467884,2.5753553,870.24,868.71,0.19986216]
[1757247468482,2.5753553,870.53,868.71,0.19986216]
[1757247468985,2.5753553,870.48,868.71,0.19986216]
[1757247469485,3.609638,870.88,868.71,0.19986216]
[1757247469486,2.5753553,870.45,868.71,0.19986216]
[1757247469986,2.5753553,870.44,868.71,0.19986216]
[1757247470481,2.5753553,870.26,868.71,0.19986216]
[1757247471686,2.5753553,870.25,868.71,0.19986216]
[1757247475187,2.5753553,870.23,868.71,0.19986216]
[1757247476288,2.5753553,870.21,868.71,0.19986216]
[1757247478390,2.5753553,869.94,868.71,0.19986216]
[1757247479392,2.5753553,869.92,868.71,0.19986216]
[1757247480492,2.5753553,869.91,868.71,0.19986216]
[1757247481091,1.0301254,869.12,868.71,0.19986216]
[1757247481290,2.5753553,869.91,868.71,0.19986216]
[1757247481494,2.5753553,869.92,868.71,0.19986216]
[1757247485098,1.75598611,869.87,868.71,0.19986216]
[1757247485694,3.609638,870.26,868.71,0.19986216]
[1757247485898,3.609638,870.19,868.71,0.19986216]
[1757247486794,1.5452395,869.29,868.71,0.19986216]
[1757247487091,1.5452395,869.28,868.71,0.19986216]
[1757247487295,1.01257631,869.28,868.71,0.19986216]
[1757247487596,3.609638,870.19,868.71,0.19986216]
[1757247488093,3.609638,870.18,868.71,0.19986216]
[1757247488897,3.609638,870.49,868.71,0.19986216]
[1757247489895,3.609638,870.4,868.71,0.19986216]
[1757247492000,3.609638,870.39,868.71,0.19986216]
[1757247494101,2.5772316,870.04,868.71,0.19986216]
[1757247494601,2.5772316,870.09,868.71,0.19986216]
[1757247495203,1.71891184,870.09,868.71,0.19986216]
[1757247495910,3.609638,870.45,868.71,0.19986216]
[1757247496204,3.609638,870.48,868.71,0.19986216]
[1757247498302,3.609638,870.68,868.71,0.19986216]
[1757247499308,3.609638,870.63,868.71,0.19986216]
[1757247500303,3.609638,870.74,868.71,0.19986216]
[1757247501404,3.609638,870.9,868.71,0.19986216]
[1757247502006,1.1472649,870.89,868.71,0.19986216]
[1757247502205,1.1472649,870.88,868.71,0.19986216]
[1757247502403,1.1472649,870.87,868.71,0.19986216]
[1757247502608,1.1472649,870.86,868.71,0.19986216]
[1757247502808,0.19986216,871.13,868.71,0.19986216]
[1757247503103,1.1472539,871.12,868.71,0.19986216]
[1757247503306,1.1472539,871.11,868.71,0.19986216]
[1757247503609,1.1472539,871.1,868.71,0.19986216]
[1757247503809,1.1472539,871.09,868.71,0.19986216]
[1757247504105,2.5781663,871.04,868.71,0.19986216]
[1757247504304,1.1472539,871.03,868.71,0.19986216]
[1757247504506,1.1472539,871.02,868.71,0.19986216]
[1757247504805,1.1472539,871.01,868.71,0.19986216]
[1757247505010,1.1472539,871.0,868.71,0.19986216]
[1757247505207,1.1472539,870.99,868.71,0.19986216]
[1757247505411,1.1472539,870.98,868.71,0.19986216]
[1757247505606,1.1472539,870.97,868.71,0.19986216]
[1757247505810,1.1472539,870.96,868.71,0.19986216]
[1757247506012,1.1472539,870.95,868.71,0.19986216]
[1757247506210,1.1472539,870.94,868.71,0.19986216]
[1757247506507,1.1472539,870.93,868.71,0.19986216]
[1757247506708,1.1472539,870.92,868.71,0.19986216]
[1757247506912,1.1472539,870.91,868.71,0.19986216]
[1757247507110,1.1472539,870.9,868.71,0.19986216]
[1757247507313,1.5470419,869.87,868.71,0.19986216]
[1757247508111,1.5470419,869.85,868.71,0.19986216]
[1757247509312,1.5470419,869.84,868.71,0.19986216]
[1757247510415,1.5470419,869.68,868.71,0.19986216]
[1757247510612,1.5470419,869.66,868.71,0.19986216]
[1757247511313,1.031483,869.38,868.71,0.19986216]
[1757247511614,1.5470419,869.69,868.71,0.19986216]
[1757247511814,1.5470419,869.7,868.71,0.19986216]
[1757247512214,1.5470419,869.5,868.71,0.19986216]
[1757247512412,1.5470419,869.43,868.71,0.19986216]
[1757247513817,1.0717877,869.41,868.71,0.19986216]
[1757247514318,2.5781663,870.22,868.71,0.19986216]
[1757247514516,2.5781663,870.23,868.71,0.19986216]
[1757247515719,2.5781663,870.25,868.71,0.19986216]
[1757247516717,2.5781663,870.24,868.71,0.19986216]
[1757247517722,2.5781663,870.21,868.71,0.19986216]
[1757247518423,3.609638,870.61,868.71,0.19986216]
[1757247518424,2.5781663,870.2,868.71,0.19986216]
[1757247518724,2.5781663,870.15,868.71,0.19986216]
[1757247520628,2.5781663,870.2,868.71,0.19986216]
[1757247521329,2.5781663,870.01,868.71,0.19986216]
[1757247521530,1.71867293,870.01,868.71,0.19986216]
[1757247521728,3.609638,870.35,868.71,0.19986216]
[1757247522228,3.609638,870.24,868.71,0.19986216]
[1757247523131,3.609638,870.26,868.71,0.19986216]
[1757247524227,3.609638,870.23,868.71,0.19986216]
[1757247525330,3.609638,870.3,868.71,0.19986216]
[1757247526229,3.609638,870.29,868.71,0.19986216]
[1757247529326,3.609638,870.24,868.71,0.19986216]
[1757247530532,2.5790309,869.88,868.71,0.19986216]
[1757247531032,2.5790309,869.81,868.71,0.19986216]
[1757247531428,1.77098812,869.81,868.71,0.19986216]
[1757247532029,1.24734594,869.81,868.71,0.19986216]
[1757247532231,3.609638,870.11,868.71,0.19986216]
[1757247532531,3.609638,870.29,868.71,0.19986216]
[1757247533632,3.609638,870.35,868.71,0.19986216]
[1757247533830,1.5474146,869.3,868.71,0.19986216]
[1757247534530,1.10756203,869.28,868.71,0.19986216]
[1757247534932,3.609638,870.29,868.71,0.19986216]
[1757247535630,3.609638,870.32,868.71,0.19986216]
[1757247536729,3.609638,870.31,868.71,0.19986216]
[1757247538637,3.609638,870.3,868.71,0.19986216]
[1757247540936,3.609638,870.36,868.71,0.19986216]